[Event "Slovakian-ch Youth 2022"]
[Site "Lubovna"]
[Date "2022.05.22"]
[Round "1.23"]
[White "Havalda, Samuel"]
[Black "Janik, Marek Tobias"]
[Result "0-1"]
[ECO "B33"]
[WhiteElo "1465"]
[BlackElo "1840"]
[Annotator "NA RC COMBH"]
[PlyCount "96"]
[EventDate "2022.05.22"]
[EventCountry "SVK"]
[SourceTitle "playchess.com"]
[Source "ChessBase"]
[SourceQuality "1"]
[TimeControl "40/5400+30:1800+30"]

1. e4 {[%emt 0:00:08]} c5 {[%emt 0:00:05]} 2. Nf3 {[%emt 0:00:09]} Nc6 {[%emt 0:00:03]} 3. d4 {[%emt 0:00:16]} cxd4 {[%emt 0:00:06]} 4. Nxd4 {[%emt 0:00:06]} Nf6 {[%emt 0:00:19]} 5. Nc3 {[%emt 0:00:35]} e5 {[%emt 0:00:08]} 6. Nb3 {[%emt 0:00:06]} Bb4 {[%emt 0:00:41]} 7. Bd3 {[%emt 0:01:32]} O-O {[%emt 0:00:48]} 8. Bd2 {[%emt 0:01:26]} d5 {[%emt 0:05:47]} 9. exd5 {[%emt 0:03:35]} Nxd5 {[%emt 0:00:12]} 10. Nxd5 {[%emt 0:01:54]} Qxd5 {[%emt 0:00:53]} 11. Qe2 {[%emt 0:00:37]} Qxg2 {[%emt 0:14:08]} 12. Be4 {[%emt 0:00:17]} Bxd2+ {[%emt 0:00:10]} 13. Nxd2 {[%emt 0:00:06]} Qg5 {[%emt 0:00:27]} 14. Nf3 {[%emt 0:02:22]} Qf4 {[%emt 0:01:03]} 15. h4 {[%emt 0:02:48]} Bg4 {[%emt 0:01:14]} 16. Qe3 {[%emt 0:03:45]} Bxf3 {[%emt 0:04:19]} 17. Qxf4 {[%emt 0:00:51]} exf4 {[%emt 0:00:05]} 18. Bxf3 {[%emt 0:00:09]} Nd4 {[%emt 0:00:24]} 19. Bd1 {[%emt 0:00:17]} Rfe8+ {[%emt 0:00:30]} 20. Kf1 {[%emt 0:00:29]} Rad8 {[%emt 0:05:15]} 21. Rh3 {[%emt 0:02:20]} f6 {[%emt 0:05:26]} 22. Rd3 {[%emt 0:04:45]} Nf5 {[%emt 0:02:17]} 23. h5 {[%emt 0:02:58]} Rxd3 {[%emt 0:04:41]} 24. cxd3 {[%emt 0:00:09]} Nd4 {[%emt 0:00:07]} 25. Rc1 {[%emt 0:03:25]} b5 {[%emt 0:06:10]} 26. Rc7 {[%emt 0:01:11]} Re5 {[%emt 0:14:19]} 27. Rd7 {[%emt 0:01:43]} Nc6 {[%emt 0:00:36]} 28. Bb3+ {[%emt 0:02:38]} Kf8 {[%emt 0:00:49]} 29. Rf7+ {[%emt 0:00:54]} Ke8 {[%emt 0:00:08]} 30. h6 {[%emt 0:02:03]} gxh6 {[%emt 0:01:50]} 31. Rxh7 {[%emt 0:01:06]} Nd4 {[%emt 0:02:21]} 32. Rxh6 {[%emt 0:05:34]} Nxb3 {[%emt 0:03:49]} 33. axb3 {[%emt 0:00:30]} Re6 {[%emt 0:04:48]} 34. Rh4 {[%emt 0:03:29]} Rd6 {[%emt 0:00:03]} 35. Ke2 {[%emt 0:00:53]} Rd4 {[%emt 0:00:10]} 36. Kd2 {[%emt 0:00:05]} b4 {[%emt 0:00:29]} 37. Rh6 {[%emt 0:01:52]} Rd6 {[%emt 0:01:27]} 38. Rh8+ {[%emt 0:00:05]} Ke7 {[%emt 0:00:35]} 39. Rh7+ {[%emt 0:00:05]} Ke6 {[%emt 0:00:05]} 40. Rxa7 {[%emt 0:00:15]} Kf5 {[%emt 0:02:25]} 41. Re7 {[%emt 0:33:42]} Kg4 {[%emt 0:31:21]} 42. Ke2 {[%emt 0:00:41]} Rd5 {[%emt 0:07:11]} 43. Re4 {[%emt 0:02:59]} Re5 {[%emt 0:01:15]} 44. f3+ {[%emt 0:05:20]} Kg3 {[%emt 0:00:56]} 45. d4 {[%emt 0:00:04]} Rxe4+ {[%emt 0:00:08]} 46. fxe4 {[%emt 0:00:41]} Kg2 {[%emt 0:00:05]} 47. d5 {[%emt 0:00:05]} f3+ {[%emt 0:00:03]} 48. Ke3 {[%emt 0:00:03]} f2 {[%emt 0:00:09]} 0-1

[Event "Slovakian-ch Youth 2022"]
[Site "Lubovna"]
[Date "2022.05.22"]
[Round "1.24"]
[White "Sevcik, Matej"]
[Black "Volanek, Maros"]
[Result "1-0"]
[ECO "E07"]
[WhiteElo "1820"]
[BlackElo "1458"]
[Annotator "NA RC COMBH"]
[PlyCount "49"]
[EventDate "2022.05.22"]
[EventCountry "SVK"]
[SourceTitle "playchess.com"]
[Source "ChessBase"]
[SourceQuality "1"]
[TimeControl "40/5400+30:1800+30"]

1. d4 {[%emt 0:00:13]} d5 {[%emt 0:00:10]} 2. c4 {[%emt 0:00:04]} e6 {[%emt 0:00:16]} 3. Nf3 {[%emt 0:00:16]} Nf6 {[%emt 0:00:21]} 4. g3 {[%emt 0:00:06]} Be7 {[%emt 0:00:32]} 5. Bg2 {[%emt 0:00:06]} O-O {[%emt 0:00:34]} 6. O-O {[%emt 0:00:05]} c6 {[%emt 0:00:12]} 7. Nc3 {[%emt 0:00:06]} Nbd7 {[%emt 0:00:40]} 8. Qd3 {[%emt 0:00:05]} b6 {[%emt 0:01:35]} 9. e4 {[%emt 0:00:33]} dxe4 {[%emt 0:04:03]} 10. Nxe4 {[%emt 0:00:37]} Bb7 {[%emt 0:00:26]} 11. Rd1 {[%emt 0:07:11]} Rc8 {[%emt 0:06:05]} 12. Bf4 {[%emt 0:02:56]} c5 {[%emt 0:02:18]} 13. Nd6 {[%emt 0:02:14]} Bxd6 {[%emt 0:04:18]} 14. Bxd6 {[%emt 0:00:15]} Re8 {[%emt 0:00:17]} 15. dxc5 {[%emt 0:17:23]} Nxc5 {[%emt 0:02:32]} 16. Qe3 {[%emt 0:06:40]} Nce4 {[%emt 0:07:45]} 17. Ne5 {[%emt 0:16:42]} Ba8 {[%emt 0:12:15]} 18. Bc5 {[%emt 0:12:32]} Qc7 {[%emt 0:02:56]} 19. Bd4 {[%emt 0:00:15]} Red8 {[%emt 0:08:37]} 20. Rac1 {[%emt 0:05:51]} Qe7 {[%emt 0:02:28]} 21. g4 {[%emt 0:03:12]} g5 {[%emt 0:18:13]} 22. f4 {[%emt 0:02:29]} gxf4 {[%emt 0:03:04]} 23. Qxf4 {[%emt 0:00:37]} Re8 {[%emt 0:02:26]} 24. Qh6 {[%emt 0:03:03]} Nd6 {[%emt 0:07:23]} 25. Nd7 {[%emt 0:00:45]} 1-0

[Event "Slovakian-ch Youth 2022"]
[Site "Lubovna"]
[Date "2022.05.22"]
[Round "1.25"]
[White "Klimek, Martin"]
[Black "Koska, Jiri"]
[Result "0-1"]
[ECO "B12"]
[WhiteElo "1451"]
[BlackElo "1759"]
[Annotator "NA RC COMBH"]
[PlyCount "88"]
[EventDate "2022.05.22"]
[EventCountry "SVK"]
[SourceTitle "playchess.com"]
[Source "ChessBase"]
[SourceQuality "1"]
[TimeControl "40/5400+30:1800+30"]

1. e4 {[%emt 0:00:04]} c6 {[%emt 0:00:03]} 2. d4 {[%emt 0:00:16]} d5 {[%emt 0:00:36]} 3. e5 {[%emt 0:00:31]} c5 {[%emt 0:00:00]} 4. Nf3 {[%emt 0:00:21]} Bg4 {[%emt 0:00:25]} 5. Be3 {[%emt 0:03:27]} cxd4 {[%emt 0:04:31]} 6. Bxd4 {[%emt 0:01:43]} Nc6 {[%emt 0:00:18]} 7. c3 {[%emt 0:01:45]} e6 {[%emt 0:01:08]} 8. Nbd2 {[%emt 0:02:27]} Nge7 {[%emt 0:01:44]} 9. Be2 {[%emt 0:02:03]} Ng6 {[%emt 0:03:22]} 10. O-O {[%emt 0:03:47]} Qc7 {[%emt 0:05:58]} 11. Re1 {[%emt 0:07:13]} Be7 {[%emt 0:01:05]} 12. h3 {[%emt 0:01:09]} Bxf3 {[%emt 0:02:22]} 13. Nxf3 {[%emt 0:00:26]} O-O {[%emt 0:00:33]} 14. Rc1 {[%emt 0:02:25]} Ncxe5 {[%emt 0:10:26]} 15. Nxe5 {[%emt 0:08:42]} Nxe5 {[%emt 0:01:01]} 16. Bd3 {[%emt 0:00:51]} Nxd3 {[%emt 0:01:49]} 17. Qxd3 {[%emt 0:00:11]} Bc5 {[%emt 0:13:41]} 18. c4 {[%emt 0:06:26]} Bxd4 {[%emt 0:00:16]} 19. Qxd4 {[%emt 0:00:13]} dxc4 {[%emt 0:03:33]} 20. Qxc4 {[%emt 0:02:48]} Qxc4 {[%emt 0:10:48]} 21. Rxc4 {[%emt 0:00:18]} Rac8 {[%emt 0:00:13]} 22. Rec1 {[%emt 0:00:57]} Rxc4 {[%emt 0:00:08]} 23. Rxc4 {[%emt 0:00:17]} g6 {[%emt 0:00:22]} 24. Rc7 {[%emt 0:02:01]} Rb8 {[%emt 0:03:15]} 25. g4 {[%emt 0:01:39]} a5 {[%emt 0:00:40]} 26. Kf1 {[%emt 0:02:38]} b5 {[%emt 0:00:16]} 27. b3 {[%emt 0:04:23]} a4 {[%emt 0:11:20]} 28. bxa4 {[%emt 0:10:51]} bxa4 {[%emt 0:00:06]} 29. Rc2 {[%emt 0:03:21]} Rb4 {[%emt 0:00:59]} 30. Kg2 {[%emt 0:01:41]} Kg7 {[%emt 0:00:10]} 31. Kg3 {[%emt 0:04:50]} Kf6 {[%emt 0:01:00]} 32. h4 {[%emt 0:03:01]} h5 {[%emt 0:04:14]} 33. f3 {[%emt 0:02:55]} Rd4 {[%emt 0:01:23]} 34. Re2 {[%emt 0:01:01]} Rb4 {[%emt 0:01:50]} 35. gxh5 {[%emt 0:02:24]} gxh5 {[%emt 0:00:16]} 36. f4 {[%emt 0:00:12]} Rc4 {[%emt 0:00:39]} 37. Re3 {[%emt 0:01:24]} Rc2 {[%emt 0:02:28]} 38. Ra3 {[%emt 0:00:17]} Rc4 {[%emt 0:00:05]} 39. Re3 {[%emt 0:00:32]} Rd4 {[%emt 0:03:08]} 40. Kf3 {[%emt 0:01:03]} Ke7 {[%emt 0:01:14]} 41. Re4 {[%emt 0:32:46]} Rxe4 {[%emt 0:30:13]} 42. Kxe4 {[%emt 0:00:02]} Kd6 {[%emt 0:00:15]} 43. f5 {[%emt 0:01:36]} e5 {[%emt 0:00:09]} 44. a3 {[%emt 0:00:34]} f6 {[%emt 0:00:05]} 0-1

[Event "Slovakian-ch Youth 2022"]
[Site "Lubovna"]
[Date "2022.05.22"]
[Round "1.26"]
[White "Baron, Patrik"]
[Black "Ondrejcak Gregor"]
[Result "0-1"]
[ECO "C56"]
[WhiteElo "1740"]
[BlackElo "1000"]
[Annotator "NA COMBH"]
[PlyCount "46"]
[EventDate "2022.05.22"]
[EventCountry "SVK"]
[SourceTitle "playchess.com"]
[Source "ChessBase"]
[SourceQuality "1"]
[TimeControl "40/5400+30:1800+30"]

1. e4 {[%emt 0:04:16]} e5 {[%emt 0:00:20]} 2. Nf3 {[%emt 0:00:11]} Nc6 {[%emt 0:00:23]} 3. Bc4 {[%emt 0:00:10]} Nf6 {[%emt 0:00:22]} 4. d4 {[%emt 0:00:08]} exd4 {[%emt 0:00:44]} 5. e5 {[%emt 0:00:07]} Ng4 {[%emt 0:01:48]} 6. O-O {[%emt 0:00:11]} Be7 {[%emt 0:01:05]} 7. Re1 {[%emt 0:00:26]} O-O {[%emt 0:00:42]} 8. h3 {[%emt 0:02:06]} Nh6 {[%emt 0:03:07]} 9. Bxh6 {[%emt 0:01:50]} gxh6 {[%emt 0:00:22]} 10. Nxd4 {[%emt 0:01:00]} d5 {[%emt 0:06:27]} 11. Nxc6 {[%emt 0:09:08]} bxc6 {[%emt 0:00:29]} 12. Bd3 {[%emt 0:00:21]} Rb8 {[%emt 0:06:25]} 13. Qc1 {[%emt 0:01:30]} Bg5 {[%emt 0:02:16]} 14. f4 {[%emt 0:01:21]} Be7 {[%emt 0:02:44]} 15. Nd2 {[%emt 0:05:21]} Bc5+ {[%emt 0:01:16]} 16. Kh2 {[%emt 0:03:49]} Kh8 {[%emt 0:05:49]} 17. Nf3 {[%emt 0:03:12]} f5 {[%emt 0:05:08]} 18. c3 {[%emt 0:11:33]} Be6 {[%emt 0:03:12]} 19. Re2 {[%emt 0:07:26]} d4 {[%emt 0:10:00]} 20. Rd2 {[%emt 0:14:37]} dxc3 {[%emt 0:06:36]} 21. Qxc3 {[%emt 0:01:38]} Bb4 {[%emt 0:01:37]} 22. Qxc6 {[%emt 0:00:11]} Bxd2 {[%emt 0:00:47]} 23. Qxe6 {[%emt 0:02:04]} Bxf4+ {[%emt 0:01:08]} 0-1

[Event "Slovakian-ch Youth 2022"]
[Site "Lubovna"]
[Date "2022.05.22"]
[Round "1.27"]
[White "Brnusak, Simon"]
[Black "Durovka, Marek"]
[Result "0-1"]
[ECO "B34"]
[WhiteElo "1090"]
[BlackElo "1827"]
[Annotator "NA RC COMBH"]
[PlyCount "78"]
[EventDate "2022.05.22"]
[EventCountry "SVK"]
[SourceTitle "playchess.com"]
[Source "ChessBase"]
[SourceQuality "1"]
[TimeControl "40/5400+30:1800+30"]

1. e4 {[%emt 0:00:05]} c5 {[%emt 0:00:08]} 2. Nf3 {[%emt 0:00:26]} Nc6 {[%emt 0:00:38]} 3. d4 {[%emt 0:01:30]} cxd4 {[%emt 0:00:44]} 4. Nxd4 {[%emt 0:01:32]} Nf6 {[%emt 0:01:05]} 5. Nc3 {[%emt 0:01:28]} g6 {[%emt 0:01:12]} 6. Be3 {[%emt 0:02:02]} Bg7 {[%emt 0:00:42]} 7. Qd2 {[%emt 0:01:45]} O-O {[%emt 0:00:55]} 8. O-O-O {[%emt 0:01:12]} Ng4 {[%emt 0:02:53]} 9. Be2 {[%emt 0:01:57]} Nxe3 {[%emt 0:04:42]} 10. Qxe3 {[%emt 0:01:53]} Nxd4 {[%emt 0:00:40]} 11. Rxd4 {[%emt 0:01:28]} Bxd4 {[%emt 0:00:16]} 12. Qxd4 {[%emt 0:00:41]} d6 {[%emt 0:02:47]} 13. Rd1 {[%emt 0:03:02]} Be6 {[%emt 0:03:55]} 14. f4 {[%emt 0:03:15]} Qb6 {[%emt 0:02:49]} 15. Qd2 {[%emt 0:00:58]} Qa5 {[%emt 0:04:34]} 16. Kb1 {[%emt 0:01:55]} Rfc8 {[%emt 0:06:26]} 17. a3 {[%emt 0:02:19]} Rab8 {[%emt 0:02:39]} 18. g4 {[%emt 0:06:57]} b5 {[%emt 0:02:45]} 19. b4 {[%emt 0:01:12]} Qxa3 {[%emt 0:01:29]} 20. Nd5 {[%emt 0:06:14]} Bxd5 {[%emt 0:01:00]} 21. exd5 {[%emt 0:02:02]} Rb6 {[%emt 0:00:51]} 22. Qc1 {[%emt 0:04:27]} Qxb4+ {[%emt 0:01:13]} 23. Qb2 {[%emt 0:00:25]} Qxb2+ {[%emt 0:00:33]} 24. Kxb2 {[%emt 0:00:06]} a5 {[%emt 0:00:07]} 25. Ra1 {[%emt 0:01:45]} a4 {[%emt 0:00:12]} 26. c3 {[%emt 0:02:17]} Rc5 {[%emt 0:01:18]} 27. Kc2 {[%emt 0:04:12]} Rxd5 {[%emt 0:00:38]} 28. f5 {[%emt 0:01:11]} gxf5 {[%emt 0:03:37]} 29. gxf5 {[%emt 0:01:20]} Rxf5 {[%emt 0:00:21]} 30. Rg1+ {[%emt 0:02:37]} Kf8 {[%emt 0:00:12]} 31. Bd3 {[%emt 0:00:43]} Rf2+ {[%emt 0:00:07]} 32. Kc1 {[%emt 0:01:31]} Rxh2 {[%emt 0:00:18]} 33. Bc2 {[%emt 0:01:06]} a3 {[%emt 0:00:33]} 34. Bb3 {[%emt 0:02:17]} a2 {[%emt 0:00:52]} 35. Bxa2 {[%emt 0:01:11]} Rxa2 {[%emt 0:00:18]} 36. Kb1 {[%emt 0:00:53]} Rba6 {[%emt 0:00:04]} 37. Rc1 {[%emt 0:01:11]} Ra1+ {[%emt 0:00:22]} 38. Kb2 {[%emt 0:00:27]} R6a2+ {[%emt 0:00:05]} 39. Kb3 {[%emt 0:00:54]} Rxc1 {[%emt 0:00:02]} 0-1

[Event "Slovakian-ch Youth 2022"]
[Site "Lubovna"]
[Date "2022.05.22"]
[Round "1.28"]
[White "Meszaros, Casey Ryan"]
[Black "Gobl, Fabian"]
[Result "1-0"]
[ECO "C68"]
[WhiteElo "1757"]
[BlackElo "1017"]
[Annotator "NA COMBH"]
[PlyCount "89"]
[EventDate "2022.05.22"]
[EventCountry "SVK"]
[SourceTitle "playchess.com"]
[Source "ChessBase"]
[SourceQuality "1"]
[TimeControl "40/5400+30:1800+30"]

1. e4 {[%emt 0:00:37]} e5 {[%emt 0:00:18]} 2. Nf3 {[%emt 0:00:27]} Nc6 {[%emt 0:00:41]} 3. Bb5 {[%emt 0:00:28]} a6 {[%emt 0:00:36]} 4. Bxc6 {[%emt 0:00:19]} bxc6 {[%emt 0:00:19]} 5. Nxe5 {[%emt 0:02:22]} Qe7 {[%emt 0:00:55]} 6. d4 {[%emt 0:06:16]} d6 {[%emt 0:00:17]} 7. Nf3 {[%emt 0:06:08]} Qxe4+ {[%emt 0:00:35]} 8. Be3 {[%emt 0:01:20]} Nf6 {[%emt 0:01:20]} 9. O-O {[%emt 0:01:21]} Qg6 {[%emt 0:01:06]} 10. Re1 {[%emt 0:02:05]} Be6 {[%emt 0:01:46]} 11. Ng5 {[%emt 0:02:35]} Be7 {[%emt 0:12:55]} 12. Qe2 {[%emt 0:05:54]} O-O {[%emt 0:05:21]} 13. f3 {[%emt 0:04:16]} Rfe8 {[%emt 0:00:51]} 14. Nxe6 {[%emt 0:01:38]} fxe6 {[%emt 0:00:42]} 15. c4 {[%emt 0:03:34]} c5 {[%emt 0:02:23]} 16. dxc5 {[%emt 0:00:25]} dxc5 {[%emt 0:00:25]} 17. Nc3 {[%emt 0:02:46]} Rad8 {[%emt 0:04:07]} 18. Rad1 {[%emt 0:06:38]} Rxd1 {[%emt 0:01:10]} 19. Rxd1 {[%emt 0:00:15]} Rd8 {[%emt 0:01:05]} 20. Rxd8+ {[%emt 0:00:47]} Bxd8 {[%emt 0:00:07]} 21. Bxc5 {[%emt 0:00:58]} Qf7 {[%emt 0:01:20]} 22. b4 {[%emt 0:04:33]} Be7 {[%emt 0:01:44]} 23. Na4 {[%emt 0:03:11]} Nd7 {[%emt 0:05:38]} 24. Qe3 {[%emt 0:01:44]} Nxc5 {[%emt 0:00:56]} 25. Nxc5 {[%emt 0:00:08]} Bxc5 {[%emt 0:00:09]} 26. Qxc5 {[%emt 0:00:08]} Qf4 {[%emt 0:00:34]} 27. Kf2 {[%emt 0:18:08]} Qh4+ {[%emt 0:00:37]} 28. Kf1 {[%emt 0:00:44]} Qxh2 {[%emt 0:00:12]} 29. Qe7 {[%emt 0:00:58]} h6 {[%emt 0:00:23]} 30. Qxe6+ {[%emt 0:00:18]} Kh8 {[%emt 0:00:40]} 31. Qe8+ {[%emt 0:04:05]} Kh7 {[%emt 0:00:18]} 32. Qe4+ {[%emt 0:00:16]} Kh8 {[%emt 0:00:38]} 33. b5 {[%emt 0:04:44]} axb5 {[%emt 0:00:44]} 34. cxb5 {[%emt 0:00:25]} Qd6 {[%emt 0:00:50]} 35. a4 {[%emt 0:00:39]} Qd1+ {[%emt 0:00:25]} 36. Kf2 {[%emt 0:00:13]} Qd2+ {[%emt 0:00:17]} 37. Kg1 {[%emt 0:01:38]} Qc1+ {[%emt 0:00:42]} 38. Kh2 {[%emt 0:00:11]} Qc5 {[%emt 0:00:28]} 39. Qc6 {[%emt 0:02:50]} Qe5+ {[%emt 0:00:53]} 40. g3 {[%emt 0:00:21]} Qe2+ {[%emt 0:00:36]} 41. Kh3 {[%emt 0:31:43]} Qe7 {[%emt 0:31:27]} 42. a5 {[%emt 0:00:11]} Qe5 {[%emt 0:01:41]} 43. Qa8+ {[%emt 0:00:22]} Kh7 {[%emt 0:00:19]} 44. Qe4+ {[%emt 0:00:09]} Qxe4 {[%emt 0:00:24]} 45. fxe4 {[%emt 0:00:08]} 1-0

[Event "Slovakian-ch Youth 2022"]
[Site "Lubovna"]
[Date "2022.05.22"]
[Round "1.29"]
[White "Janoska Peter"]
[Black "Bilik, Matej"]
[Result "0-1"]
[ECO "B07"]
[WhiteElo "1272"]
[BlackElo "1553"]
[Annotator "NA COMBH"]
[PlyCount "86"]
[EventDate "2022.05.22"]
[EventCountry "SVK"]
[SourceTitle "playchess.com"]
[Source "ChessBase"]
[SourceQuality "1"]
[TimeControl "40/5400+30:1800+30"]

1. e4 {[%emt 0:00:09]} e5 {[%emt 0:00:10]} 2. Nc3 {[%emt 0:00:18]} Nf6 {[%emt 0:00:51]} 3. f4 {[%emt 0:00:28]} d6 {[%emt 0:08:17]} 4. Nf3 {[%emt 0:02:08]} Nbd7 {[%emt 0:10:36]} 5. d4 {[%emt 0:03:28]} exd4 {[%emt 0:04:29]} 6. Nxd4 {[%emt 0:00:12]} Nc5 {[%emt 0:03:02]} 7. Bb5+ {[%emt 0:11:26]} Bd7 {[%emt 0:12:57]} 8. Bxd7+ {[%emt 0:06:14]} Qxd7 {[%emt 0:00:12]} 9. e5 {[%emt 0:06:22]} dxe5 {[%emt 0:08:08]} 10. fxe5 {[%emt 0:00:30]} Nfe4 {[%emt 0:00:48]} 11. Nce2 {[%emt 0:11:13]} O-O-O {[%emt 0:11:22]} 12. Be3 {[%emt 0:14:00]} Qe7 {[%emt 0:07:46]} 13. c3 {[%emt 0:05:29]} Qxe5 {[%emt 0:15:43]} 14. Bf4 {[%emt 0:05:35]} Qf6 {[%emt 0:01:41]} 15. Qc2 {[%emt 0:07:57]} Nd6 {[%emt 0:03:00]} 16. O-O-O {[%emt 0:01:51]} g5 {[%emt 0:02:35]} 17. Bg3 {[%emt 0:01:23]} Nce4 {[%emt 0:04:51]} 18. Rhf1 {[%emt 0:01:09]} Qe7 {[%emt 0:00:17]} 19. Bxd6 {[%emt 0:01:36]} Nxd6 {[%emt 0:00:12]} 20. Ng3 {[%emt 0:00:22]} Bg7 {[%emt 0:01:51]} 21. Ngf5 {[%emt 0:01:25]} Nxf5 {[%emt 0:01:24]} 22. Qxf5+ {[%emt 0:00:11]} Rd7 {[%emt 0:00:34]} 23. Rfe1 {[%emt 0:02:27]} Qf6 {[%emt 0:00:39]} 24. Qxf6 {[%emt 0:00:15]} Bxf6 {[%emt 0:00:08]} 25. Rf1 {[%emt 0:00:57]} Bxd4 {[%emt 0:00:24]} 26. Rxd4 {[%emt 0:00:15]} Rxd4 {[%emt 0:00:08]} 27. cxd4 {[%emt 0:00:03]} Rf8 {[%emt 0:00:17]} 28. Rf5 {[%emt 0:00:29]} f6 {[%emt 0:00:08]} 29. d5 {[%emt 0:00:38]} Kd7 {[%emt 0:00:08]} 30. g4 {[%emt 0:00:19]} Ke7 {[%emt 0:00:24]} 31. Kc2 {[%emt 0:00:34]} Kf7 {[%emt 0:01:32]} 32. Kc3 {[%emt 0:00:36]} Re8 {[%emt 0:00:15]} 33. Kd2 {[%emt 0:00:21]} Re4 {[%emt 0:00:09]} 34. h3 {[%emt 0:00:19]} Rd4+ {[%emt 0:00:24]} 35. Kc2 {[%emt 0:00:31]} Kg6 {[%emt 0:01:00]} 36. Kc3 {[%emt 0:01:00]} Rd1 {[%emt 0:00:14]} 37. Kc2 {[%emt 0:02:55]} Rg1 {[%emt 0:00:27]} 38. Rf3 {[%emt 0:01:12]} Re1 {[%emt 0:00:24]} 39. Rc3 {[%emt 0:01:05]} Re7 {[%emt 0:00:40]} 40. Kd3 {[%emt 0:02:02]} f5 {[%emt 0:01:00]} 41. Rc4 {[%emt 0:32:08]} Rd7 {[%emt 0:03:50]} 42. gxf5+ {[%emt 0:00:00]} Kxf5 {[%emt 0:00:23]} 43. Ke3 {[%emt 0:00:00]} Ke5 {[%emt 0:10:31]} 0-1

[Event "Slovakian-ch Youth 2022"]
[Site "Lubovna"]
[Date "2022.05.22"]
[Round "1.30"]
[White "Dolnik, Michal"]
[Black "Krajci Hugo"]
[Result "1-0"]
[ECO "C50"]
[WhiteElo "1548"]
[BlackElo "1178"]
[Annotator "NA COMBH"]
[PlyCount "81"]
[EventDate "2022.05.22"]
[EventCountry "SVK"]
[SourceTitle "playchess.com"]
[Source "ChessBase"]
[SourceQuality "1"]
[TimeControl "40/5400+30:1800+30"]

1. e4 {[%emt 0:02:20]} e5 {[%emt 0:00:00]} 2. Nf3 {[%emt 0:00:00]} Nc6 {[%emt 0:00:00]} 3. Bc4 {[%emt 0:04:28]} Bc5 {[%emt 0:00:00]} 4. O-O {[%emt 0:06:29]} Nf6 {[%emt 0:10:50]} 5. d3 {[%emt 0:00:30]} h6 {[%emt 0:00:30]} 6. Be3 {[%emt 0:00:30]} Bxe3 {[%emt 0:00:30]} 7. fxe3 {[%emt 0:00:30]} d6 {[%emt 0:00:30]} 8. Nbd2 {[%emt 0:00:30]} Bg4 {[%emt 0:00:30]} 9. h3 {[%emt 0:00:30]} Bh5 {[%emt 0:00:30]} 10. c3 {[%emt 0:00:30]} O-O {[%emt 0:00:30]} 11. Qe1 {[%emt 0:00:30]} Ne7 {[%emt 0:00:30]} 12. Nh4 {[%emt 0:00:30]} Nh7 {[%emt 0:00:30]} 13. Qg3 {[%emt 0:00:30]} c5 {[%emt 0:00:30]} 14. Nf5 {[%emt 0:01:25]} Nxf5 {[%emt 0:01:17]} 15. Rxf5 {[%emt 0:00:32]} Ng5 {[%emt 0:00:55]} 16. h4 {[%emt 0:01:05]} Nxe4 {[%emt 0:08:22]} 17. dxe4 {[%emt 0:02:27]} Bg6 {[%emt 0:00:24]} 18. Qxg6 {[%emt 0:00:26]} Qe7 {[%emt 0:01:57]} 19. Qg3 {[%emt 0:00:50]} Rac8 {[%emt 0:00:42]} 20. Raf1 {[%emt 0:00:21]} Rc7 {[%emt 0:02:46]} 21. Rxf7 {[%emt 0:00:37]} Rxf7 {[%emt 0:00:13]} 22. Rxf7 {[%emt 0:00:08]} Qxf7 {[%emt 0:00:20]} 23. Bxf7+ {[%emt 0:00:06]} Rxf7 {[%emt 0:00:10]} 24. Nc4 {[%emt 0:00:09]} Rf6 {[%emt 0:00:30]} 25. Qg4 {[%emt 0:00:13]} Kh8 {[%emt 0:00:14]} 26. Na5 {[%emt 0:00:12]} b6 {[%emt 0:00:16]} 27. Nb7 {[%emt 0:00:07]} Kh7 {[%emt 0:00:33]} 28. Nd8 {[%emt 0:00:10]} Kh8 {[%emt 0:00:39]} 29. Ne6 {[%emt 0:00:09]} Rf7 {[%emt 0:00:22]} 30. Qg6 {[%emt 0:00:04]} Rb7 {[%emt 0:00:29]} 31. Qe8+ {[%emt 0:00:20]} Kh7 {[%emt 0:00:19]} 32. h5 {[%emt 0:00:30]} a6 {[%emt 0:00:14]} 33. Qg6+ {[%emt 0:00:18]} Kh8 {[%emt 0:00:42]} 34. Nd8 {[%emt 0:00:10]} Ra7 {[%emt 0:00:32]} 35. Qe8+ {[%emt 0:00:11]} Kh7 {[%emt 0:00:24]} 36. Nf7 {[%emt 0:00:06]} Rxf7 {[%emt 0:00:26]} 37. Qxf7 {[%emt 0:00:05]} Kh8 {[%emt 0:00:15]} 38. Kh2 {[%emt 0:00:04]} Kh7 {[%emt 0:09:54]} 39. Kg3 {[%emt 0:00:36]} Kh8 {[%emt 0:03:05]} 40. Kg4 {[%emt 0:00:10]} Kh7 {[%emt 0:00:17]} 41. Kf5 {[%emt 0:30:06]} 1-0

[Event "Slovakian-ch Youth 2022"]
[Site "Lubovna"]
[Date "2022.05.22"]
[Round "1.31"]
[White "Kriska Alexander"]
[Black "Ropovik, Samuel"]
[Result "0-1"]
[ECO "B50"]
[WhiteElo "1046"]
[BlackElo "1453"]
[Annotator "NA COMBH"]
[PlyCount "84"]
[EventDate "2022.05.22"]
[EventCountry "SVK"]
[SourceTitle "playchess.com"]
[Source "ChessBase"]
[SourceQuality "1"]
[TimeControl "40/5400+30:1800+30"]

1. e4 {[%emt 0:00:10]} c5 {[%emt 0:00:19]} 2. Nc3 {[%emt 0:00:22]} Nc6 {[%emt 0:00:42]} 3. Nf3 {[%emt 0:00:48]} d6 {[%emt 0:00:36]} 4. Bc4 {[%emt 0:00:53]} Nf6 {[%emt 0:03:07]} 5. d3 {[%emt 0:02:29]} g6 {[%emt 0:11:08]} 6. d4 {[%emt 0:07:04]} cxd4 {[%emt 0:03:23]} 7. Nxd4 {[%emt 0:01:24]} Nxd4 {[%emt 0:09:29]} 8. Qxd4 {[%emt 0:02:56]} Bg7 {[%emt 0:00:47]} 9. O-O {[%emt 0:02:11]} O-O {[%emt 0:02:17]} 10. Be3 {[%emt 0:03:40]} Ng4 {[%emt 0:08:10]} 11. Qd2 {[%emt 0:02:25]} Nxe3 {[%emt 0:01:59]} 12. Qxe3 {[%emt 0:00:53]} Bd7 {[%emt 0:12:31]} 13. Rfd1 {[%emt 0:04:25]} Rc8 {[%emt 0:05:52]} 14. Bd5 {[%emt 0:04:14]} Bxc3 {[%emt 0:05:58]} 15. bxc3 {[%emt 0:04:15]} b6 {[%emt 0:04:14]} 16. Rd3 {[%emt 0:05:34]} Kg7 {[%emt 0:03:48]} 17. Bb7 {[%emt 0:08:02]} Rc5 {[%emt 0:03:13]} 18. Rd5 {[%emt 0:03:00]} Qc7 {[%emt 0:03:21]} 19. Rxc5 {[%emt 0:03:23]} Qxc5 {[%emt 0:04:13]} 20. Qd4+ {[%emt 0:03:09]} Kg8 {[%emt 0:06:26]} 21. Qxc5 {[%emt 0:01:32]} bxc5 {[%emt 0:01:10]} 22. Ba6 {[%emt 0:01:39]} Rb8 {[%emt 0:01:11]} 23. h3 {[%emt 0:01:33]} Rb2 {[%emt 0:01:38]} 24. Bd3 {[%emt 0:01:32]} Ba4 {[%emt 0:02:32]} 25. Kf1 {[%emt 0:01:53]} Bxc2 {[%emt 0:02:10]} 26. Bxc2 {[%emt 0:00:44]} Rxc2 {[%emt 0:00:10]} 27. Ke1 {[%emt 0:01:53]} Kg7 {[%emt 0:00:50]} 28. g4 {[%emt 0:02:34]} Kf6 {[%emt 0:01:57]} 29. Rd1 {[%emt 0:00:52]} Rxa2 {[%emt 0:00:31]} 30. Rd2 {[%emt 0:00:16]} Rxd2 {[%emt 0:00:25]} 31. Kxd2 {[%emt 0:00:40]} a5 {[%emt 0:00:15]} 32. Kc2 {[%emt 0:00:28]} Ke5 {[%emt 0:00:13]} 33. f3 {[%emt 0:00:40]} Kf4 {[%emt 0:00:22]} 34. Kb3 {[%emt 0:00:37]} Kxf3 {[%emt 0:00:14]} 35. g5 {[%emt 0:00:27]} Kxe4 {[%emt 0:00:14]} 36. Ka4 {[%emt 0:00:23]} d5 {[%emt 0:00:25]} 37. c4 {[%emt 0:00:53]} d4 {[%emt 0:00:16]} 38. h4 {[%emt 0:00:44]} d3 {[%emt 0:00:12]} 39. h5 {[%emt 0:00:26]} d2 {[%emt 0:00:39]} 40. h6 {[%emt 0:00:19]} d1=Q+ {[%emt 0:00:16]} 41. Ka3 {[%emt 0:30:25]} Qb1 {[%emt 0:30:50]} 42. Ka4 {[%emt 0:00:39]} Qb4# {[%emt 0:00:42]} 0-1